fUSD/lending_fUSD_20240520
["ID","MTS","AMOUNT","RATE_DAILY","PERIOD"]
[327591678,1716246664079,-1300.62,0.0003863,6]
[327591679,1716246664089,-2911.32,0.0003863,6]
[327591680,1716246664099,-500.0,0.0003863,6]
[327591681,1716246664109,-500.0,0.0003863,6]
[327591682,1716246664119,-1284.66,0.0003863,6]
[327591683,1716246664129,-2262.09,0.0003863,6]
[327591684,1716246664139,-500.0,0.0003863,6]
[327591685,1716246664149,-2061.94,0.0003863,6]
[327591686,1716246664159,-500.0,0.0003863,6]
[327591687,1716246664170,-459.82,0.0003863,6]
[327591688,1716246664186,-500.0,0.0003863,6]
[327591689,1716246664195,-500.0,0.0003863,6]
[327591690,1716246664206,-1603.66,0.0003863,6]
[327591691,1716246664216,-500.0,0.0003863,6]
[327591692,1716246664225,-500.0,0.0003863,6]
[327591693,1716246664235,-724.94,0.0003863,6]
[327591694,1716246664246,-910.42,0.0003863,6]
[327591695,1716246664256,-2658.61,0.0003863,6]
[327591696,1716246664270,-2717.97,0.0003863,6]
[327591697,1716246664280,-560.38,0.0003863,6]
[327591698,1716246664290,-500.0,0.0003863,6]
[327591699,1716246664299,-500.0,0.0003863,6]
[327591700,1716246664313,-642.93,0.0003863,6]
[327591701,1716246664323,-500.0,0.0003863,6]
[327591702,1716246664333,-500.0,0.0003863,6]
[327591703,1716246664343,-500.0,0.0003863,6]
[327591704,1716246664355,-585.08,0.0003863,6]
[327591705,1716246664365,-1173.96,0.0003863,6]
[327591706,1716246664375,-11507.31,0.0003863,6]
[327591707,1716246664385,-507.93,0.0003863,6]
[327591708,1716246664396,-1614.17,0.0003863,6]
[327591709,1716246664406,-2080.1,0.0003863,6]
[327591710,1716246664416,-517.19713026,0.0003863,6]
[327591711,1716246664426,-2750.87,0.0003863,6]
[327591712,1716246664436,-1543.41,0.0003863,6]
[327591713,1716246664446,-500.0,0.0003863,6]
[327591714,1716246664456,-500.0,0.0003863,6]
[327591715,1716246664466,-500.0,0.0003863,6]
[327591716,1716246664476,-899.29,0.0003863,6]
[327591717,1716246664486,-788.25,0.0003863,6]
[327591718,1716246664496,-500.0,0.0003863,6]
[327591719,1716246664506,-544.47,0.0003863,6]
[327591720,1716246664517,-616.96,0.0003863,6]
[327591721,1716246664526,-500.0,0.0003863,6]
[327591722,1716246664538,-31050.72,0.0003863,6]
[327591723,1716246664548,-4184.73,0.0003863,6]
[327591724,1716246664558,-7122.67,0.0003863,6]
[327591725,1716246664568,-1683.02,0.0003863,6]
[327591726,1716246664578,-4614.9,0.0003863,6]
[327591727,1716246664588,-500.0,0.0003863,6]
[327591728,1716246664598,-500.0,0.0003863,6]
[327591729,1716246664607,-5543.31,0.0003863,6]
[327591730,1716246664618,-500.0,0.0003863,6]
[327591731,1716246664627,-500.0,0.0003863,6]
[327591732,1716246664637,-6630.33,0.0003863,6]
[327591733,1716246664646,-1595.19,0.0003863,6]
[327591734,1716246664656,-500.0,0.0003863,6]
[327591735,1716246664666,-1219.42,0.0003863,6]
[327591736,1716246664676,-500.0,0.0003863,6]
[327591737,1716246664686,-2891.57,0.0003863,6]
[327591738,1716246664696,-500.0,0.0003863,6]
[327591739,1716246664706,-500.0,0.0003863,6]
[327591740,1716246664715,-1113.18,0.0003863,6]
[327591741,1716246664725,-2085.53,0.0003863,6]
[327591742,1716246664735,-2048.08,0.0003863,6]
[327591743,1716246664745,-500.0,0.0003863,6]
[327591744,1716246664757,-500.0,0.0003863,6]
[327591745,1716246664769,-1299.94,0.0003863,6]
[327591746,1716246664778,-1272.93,0.0003863,6]
[327591747,1716246664788,-545.13870471,0.0003863,6]
[327591748,1716246664797,-632.26,0.0003863,6]
[327591749,1716246664807,-2573.28,0.0003863,6]
[327591750,1716246664816,-500.0,0.0003863,6]
[327591751,1716246664825,-500.0,0.0003863,6]
[327591752,1716246664834,-2405.47,0.0003863,6]
[327591753,1716246664844,-500.0,0.0003863,6]
[327591754,1716246664853,-500.0,0.0003863,6]
[327591755,1716246664863,-2338.09,0.0003863,6]
[327591756,1716246664873,-530.93189907,0.0003863,6]
[327591757,1716246664883,-1007.81,0.0003863,6]
[327591758,1716246664892,-2108.8,0.0003863,6]
[327591759,1716246664902,-520.24,0.0003863,6]
[327591760,1716246664912,-500.0,0.0003863,6]
[327591761,1716246664922,-500.0,0.0003863,6]
[327591762,1716246664931,-1893.27,0.0003863,6]
[327591763,1716246664941,-734.1,0.0003863,6]
[327591764,1716246664951,-500.0,0.0003863,6]
[327591765,1716246664960,-677.98,0.0003863,6]
[327591766,1716246664970,-882.42,0.0003863,6]
[327591767,1716246664979,-500.0,0.0003863,6]
[327591768,1716246664989,-500.0,0.0003863,6]
[327591769,1716246664999,-3113.46,0.0003863,6]
[327591770,1716246665009,-500.0,0.0003863,6]
[327591771,1716246665020,-500.0,0.0003863,6]
[327591772,1716246665030,-500.0,0.0003863,6]
[327591773,1716246665040,-4139.38,0.0003863,6]
[327591774,1716246665049,-500.0,0.0003863,6]
[327591775,1716246665059,-500.0,0.0003863,6]
[327591776,1716246665069,-760.9,0.0003863,6]
[327591777,1716246665079,-1940.07,0.0003863,6]
[327591778,1716246665089,-1757.53,0.0003863,6]
[327591779,1716246665099,-956.04,0.0003863,6]
[327591780,1716246665108,-533.33921284,0.0003863,6]
[327591781,1716246665245,-753.42,0.0003863,6]
[327591782,1716246665254,-500.0,0.0003863,6]
[327591783,1716246665265,-500.0,0.0003863,6]
[327591784,1716246665275,-500.0,0.0003863,6]
[327591785,1716246665288,-629.59,0.0003863,6]
[327591786,1716246665297,-671.07,0.0003863,6]
[327591787,1716246665307,-14738.93,0.0003863,6]
[327591788,1716246665317,-1023.5,0.0003863,6]
[327591789,1716246665327,-2171.15,0.0003863,6]
[327591790,1716246665336,-6770.41,0.0003863,6]
[327591791,1716246665347,-3863.43,0.0003863,6]
[327591792,1716246665358,-500.0,0.0003863,6]
[327591793,1716246665368,-500.0,0.0003863,6]
[327591794,1716246665378,-1544.75,0.0003863,6]
[327591795,1716246665388,-620.75,0.0003863,6]
[327591796,1716246665398,-781.34,0.0003863,6]
[327591797,1716246665408,-2604.97,0.0003863,6]
[327591798,1716246665418,-676.73,0.0003863,6]
[327591799,1716246665427,-500.0,0.0003863,6]
[327591800,1716246665437,-500.0,0.0003863,6]
[327591801,1716246665447,-649.57,0.0003863,6]
[327591802,1716246665456,-500.0,0.0003863,6]
[327591803,1716246665465,-2650.42,0.0003863,6]
[327591804,1716246665475,-1701.73,0.0003863,6]
[327591805,1716246665484,-500.0,0.0003863,6]
[327591806,1716246665493,-859.441913,0.0003863,14]
[327591807,1716246665503,-500.0,0.0003863,6]
[327591808,1716246665521,-500.0,0.0003863,6]
[327591809,1716246665531,-500.0,0.0003863,6]
[327591810,1716246665540,-3097.94,0.0003863,6]
[327591811,1716246665550,-556.28,0.0003863,6]
[327591812,1716246665559,-742.83,0.0003863,6]
[327591813,1716246665569,-756.34,0.0003863,6]
[327591814,1716246665578,-500.0,0.0003863,6]
[327591815,1716246665588,-859.441913,0.0003863,14]
[327591816,1716246665597,-1042.79,0.0003863,6]
[327591817,1716246665606,-1017.67,0.0003863,6]
[327591818,1716246665615,-3366.33,0.0003863,6]
[327591819,1716246665624,-2045.11,0.0003863,6]
[327591820,1716246665633,-500.0,0.0003863,6]
[327591821,1716246665642,-500.0,0.0003863,6]
[327591822,1716246665651,-1624.86,0.0003863,6]
[327591823,1716246665661,-21069.99,0.0003863,6]
[327591824,1716246665670,-1520.85,0.0003863,6]
[327591825,1716246665679,-500.0,0.0003863,6]
[327591826,1716246665689,-206.76368306,0.0003863,6]
[327591827,1716246665698,-500.0,0.0003863,6]
[327591828,1716246665707,-11585.55,0.0003863,6]
[327591829,1716246665717,-1659.83,0.0003863,6]
[327591830,1716246665727,-813.72,0.0003863,6]
[327591831,1716246665736,-1180.21,0.0003863,6]
[327591832,1716246665745,-500.0,0.0003863,6]
[327591833,1716246665755,-500.0,0.0003863,6]
[327591834,1716246665764,-1121.26,0.0003863,6]
[327591835,1716246665774,-500.0,0.0003863,6]
[327591836,1716246665783,-500.0,0.0003863,6]
[327591837,1716246665792,-557.23881731,0.0003863,6]
[327591838,1716246665801,-2205.27,0.0003863,6]
[327591839,1716246665811,-2953.4,0.0003863,6]
[327591840,1716246665820,-3219.62,0.0003863,6]
[327591841,1716246665829,-686.04,0.0003863,6]
[327591842,1716246665838,-8442.33,0.0003863,6]
[327591843,1716246665847,-500.0,0.0003863,6]
[327591844,1716246665857,-769.66,0.0003863,6]
[327591845,1716246665866,-564.0,0.0003863,6]
[327591846,1716246665875,-530.63,0.0003863,6]
[327591847,1716246665886,-670.88,0.0003863,6]
[327591848,1716246665895,-1259.58,0.0003863,6]
[327591849,1716246665905,-1932.37,0.0003863,6]
[327591850,1716246665915,-500.0,0.0003863,6]
[327591851,1716246665924,-500.0,0.0003863,6]
[327591852,1716246665934,-8812.96,0.0003863,6]
[327591853,1716246665943,-2195.53,0.0003863,6]
[327591854,1716246665952,-1283.64,0.0003863,6]
[327591855,1716246665963,-9543.04,0.0003863,6]
[327591856,1716246665972,-555.84,0.0003863,6]
[327591857,1716246665981,-500.0,0.0003863,6]
[327591858,1716246665991,-574.5,0.0003863,6]
[327591859,1716246666000,-2230.85,0.0003863,6]
[327591860,1716246666010,-653.4,0.0003863,6]
[327591861,1716246666021,-500.0,0.0003863,6]
[327591862,1716246666030,-256.87497104,0.0003863,6]
[327591863,1716246666039,-1507.66,0.0003863,6]
[327591864,1716246666048,-500.0,0.0003863,6]
[327591865,1716246666058,-942.31,0.0003863,6]
[327591866,1716246666067,-500.0,0.0003863,6]
[327591867,1716246666076,-991.95,0.0003863,6]
[327591868,1716246666085,-3681.57,0.0003863,6]
[327591869,1716246666095,-500.0,0.0003863,6]
[327591870,1716246666105,-500.0,0.0003863,6]
[327591871,1716246666115,-500.0,0.0003863,6]
[327591872,1716246666124,-1081.9,0.0003863,6]
[327591873,1716246666134,-500.0,0.0003863,6]
[327591874,1716246666143,-500.0,0.0003863,6]
[327591875,1716246666152,-8066.57,0.0003863,6]
[327591876,1716246666162,-1589.03,0.0003863,6]
[327591877,1716246666171,-524.22,0.0003863,6]
[327591878,1716246666180,-1173.17,0.0003863,6]
[327591879,1716246666189,-1448.33,0.0003863,6]
[327591880,1716246666199,-500.0,0.0003863,6]
[327591881,1716246666208,-222.87,0.0003863,6]
[327591882,1716246666217,-1202.8,0.0003863,6]
[327591883,1716246666227,-2792.2,0.0003863,6]
[327591884,1716246666237,-500.0,0.0003863,6]
[327591885,1716246666246,-500.0,0.0003863,6]
[327591886,1716246666255,-500.0,0.0003863,6]
[327591887,1716246666268,-500.0,0.0003863,6]
[327591888,1716246666278,-2599.42,0.0003863,6]
[327591889,1716246666287,-1372.08,0.0003863,6]
[327591890,1716246666297,-500.0,0.0003863,6]
[327591891,1716246666307,-2197.36,0.0003863,6]
[327591892,1716246666317,-1311.61,0.0003863,6]
[327591893,1716246666326,-4115.35,0.0003863,6]
[327591894,1716246666336,-500.0,0.0003863,6]
[327591895,1716246666345,-500.0,0.0003863,6]
[327591896,1716246666356,-500.0,0.0003863,6]
[327591897,1716246666366,-500.0,0.0003863,6]
[327591898,1716246666377,-529.04,0.0003863,6]
[327591899,1716246666386,-500.0,0.0003863,6]
[327591900,1716246666396,-500.0,0.0003863,6]
[327591901,1716246666405,-500.0,0.0003863,6]
[327591902,1716246666414,-500.0,0.0003863,6]
[327591903,1716246666424,-1248.45,0.0003863,6]
[327591904,1716246666433,-327.43,0.0003863,6]
[327591905,1716246666444,-818.38,0.0003863,6]
[327591906,1716246666453,-551.38,0.0003863,6]
[327591907,1716246666463,-889.73,0.0003863,6]
[327591908,1716246666472,-1166.82,0.0003863,6]
[327591909,1716246666482,-500.0,0.0003863,6]
[327591910,1716246666492,-4782.56,0.0003863,6]
[327591911,1716246666501,-2760.24,0.0003863,6]
[327591912,1716246666510,-3451.78,0.0003863,6]
[327591913,1716246666522,-500.0,0.0003863,6]
[327591914,1716246666531,-804.28,0.0003863,6]
[327591915,1716246666540,-7172.29,0.0003863,6]
[327591916,1716246666549,-806.25,0.0003863,6]
[327591917,1716246666558,-500.0,0.0003863,6]
[327591918,1716246666567,-500.0,0.0003863,6]
[327591919,1716246666577,-194.26876779,0.0003863,6]
[327591920,1716246666586,-500.0,0.0003863,6]
[327591921,1716246666595,-2227.02,0.0003863,6]
[327591922,1716246666604,-1648.04,0.0003863,6]
[327591923,1716246666613,-1451.09,0.0003863,6]
[327591924,1716246666623,-3539.72,0.0003863,6]
[327591925,1716246666632,-500.0,0.0003863,6]
[327591926,1716246666641,-500.0,0.0003863,6]
[327591927,1716246666650,-1260.01,0.0003863,6]
[327591928,1716246666659,-3810.44,0.0003863,6]
[327591929,1716246666668,-1127.1,0.0003863,6]
[327591930,1716246666677,-500.0,0.0003863,6]
[327591931,1716246666687,-500.0,0.0003863,6]
[327591932,1716246666697,-2724.72,0.0003863,6]
[327591933,1716246666706,-1327.78,0.0003863,6]
[327591934,1716246666717,-500.0,0.0003863,6]
[327591935,1716246666726,-3095.64,0.0003863,6]
[327591936,1716246666735,-500.0,0.0003863,6]
[327591937,1716246666745,-500.0,0.0003863,6]
[327591938,1716246666754,-500.0,0.0003863,6]
[327591939,1716246666763,-500.0,0.0003863,6]
[327591940,1716246666774,-2294.4,0.0003863,6]
[327591941,1716246666783,-500.0,0.0003863,6]
[327591942,1716246666793,-3662.22,0.0003863,6]
[327591943,1716246666802,-500.0,0.0003863,6]
[327591944,1716246666812,-500.0,0.0003863,6]
[327591945,1716246666823,-2344.33,0.0003863,6]
[327591946,1716246666832,-500.0,0.0003863,6]
[327591947,1716246666841,-2919.45,0.0003863,6]
[327591948,1716246666850,-500.0,0.0003863,6]
[327591949,1716246666860,-12060.74,0.0003863,6]
[327591950,1716246666870,-2053.36,0.0003863,6]
[327591951,1716246666879,-5062.07,0.0003863,6]
[327591952,1716246666889,-668.13,0.0003863,6]
[327591953,1716246666898,-500.0,0.0003863,6]
[327591954,1716246666907,-818.94,0.0003863,6]
[327591955,1716246666916,-1665.69,0.0003863,6]
[327591956,1716246666926,-500.0,0.0003863,6]
[327591957,1716246666935,-530.12474351,0.0003863,6]
[327591958,1716246666944,-500.0,0.0003863,6]
[327591959,1716246666954,-2979.18,0.0003863,6]
[327591960,1716246666964,-2276.61,0.0003863,6]
[327591961,1716246666973,-832.65,0.0003863,6]
[327591962,1716246666983,-1202.24,0.0003863,6]
[327591963,1716246666993,-500.0,0.0003863,6]
[327591964,1716246667002,-500.0,0.0003863,6]
[327591965,1716246667011,-547.43,0.0003863,6]
[327591966,1716246667023,-4292.85,0.0003863,6]
[327591967,1716246667031,-2981.46,0.0003863,6]
[327591968,1716246667040,-500.0,0.0003863,6]
[327591969,1716246667049,-511.68,0.0003863,6]
[327591970,1716246667059,-3960.48,0.0003863,6]
[327591971,1716246667069,-184.28409724,0.0003863,6]
[327591972,1716246667079,-648.75,0.0003863,6]
[327591973,1716246667088,-1633.91,0.0003863,6]
[327591974,1716246667098,-500.0,0.0003863,6]
[327591975,1716246667107,-1623.31,0.0003863,6]
[327591976,1716246667116,-500.0,0.0003863,6]
[327591977,1716246667125,-500.0,0.0003863,6]
[327591978,1716246667135,-3725.21,0.0003863,6]
[327591979,1716246667145,-2927.56,0.0003863,6]
[327591980,1716246667155,-3947.76,0.0003863,6]
[327591981,1716246667165,-844.95,0.0003863,6]
[327591982,1716246667176,-500.0,0.0003863,6]
[327591983,1716246667185,-1350.66,0.0003863,6]
[327591984,1716246667195,-796.37,0.0003863,6]
[327591985,1716246667206,-566.76,0.0003863,6]
[327591986,1716246667216,-151.0,0.0003863,14]
[327591987,1716246667225,-3114.22,0.0003863,6]
[327591988,1716246667235,-1248.3,0.0003863,6]
[327591989,1716246667245,-500.0,0.0003863,6]
[327591990,1716246667255,-568.24,0.0003863,6]
[327591991,1716246667266,-500.0,0.0003863,6]
[327591992,1716246667279,-500.0,0.0003863,6]
[327591993,1716246667290,-500.0,0.0003863,6]
[327591994,1716246667299,-500.0,0.0003863,6]
[327591995,1716246667308,-1010.42,0.0003863,6]
[327591996,1716246667318,-528.38,0.0003863,6]
[327591997,1716246667328,-500.0,0.0003863,6]
[327591998,1716246667338,-500.0,0.0003863,6]
[327591999,1716246667348,-1534.7,0.0003863,6]
[327592000,1716246667360,-1367.3,0.0003863,6]
[327592001,1716246667371,-500.0,0.0003863,6]
[327592002,1716246667381,-150.0,0.00038663,2]
[327592003,1716246667391,-150.0,0.000387,9]
[327592004,1716246667401,-150.0,0.00038703,2]
[327592005,1716246667412,-157.052108,0.00038748,44]
[327592006,1716246667422,-4945.59745373,0.00038804,12]
[327592007,1716246667432,-172.98264134,0.00038804,12]
[327592008,1716246667442,-179.84489188,0.00038804,2]
[327592009,1716246667451,-165.8102368,0.00038804,2]
[327592010,1716246667461,-150.0,0.00038828,2]
[327592011,1716246667470,-150.0,0.00038836,2]
[327592012,1716246667481,-150.0,0.00038841,2]
[327592013,1716246667491,-150.0,0.00038871,2]
[327592014,1716246667500,-200.0,0.00038874,30]
[327592015,1716246667510,-1000.0,0.00038874,40]
[327592016,1716246667522,-500.0,0.00038874,20]
[327592017,1716246667532,-200.0,0.00038874,20]
[327592018,1716246667542,-9152.26459409,0.00038902,4]
[327592019,1716246667552,-546.89106013,0.00038902,4]
[327592020,1716246667562,-787.28734739,0.00038902,4]
[327592021,1716246667572,-355.30370891,0.00038902,4]
[327592022,1716246667582,-1773.05966905,0.00038902,4]
[327592023,1716246667592,-1000.0,0.00038903,4]
[327592024,1716246667602,-410.03425881,0.00038903,2]
[327592025,1716246667612,-155.59824231,0.00038903,4]
[327592026,1716246667622,-566.07,0.00038903,6]
[327592027,1716246667632,-566.07,0.00038903,6]
[327592028,1716246667642,-566.07,0.00038903,6]
[327592029,1716246667652,-566.07,0.00038903,6]
[327592030,1716246667662,-566.19,0.00038903,6]
[327592031,1716246667671,-385410.31907169,0.00038903,15]
[327592032,1716246667681,-9322.41825533,0.00038904,5]
[327592033,1716246667696,-155.0,0.00038904,2]
[327592034,1716246667706,-155.0,0.00038904,2]
[327592035,1716246667716,-9322.41825533,0.00038904,5]
[327592036,1716246667726,-621.86330758,0.00038904,2]
[327592037,1716246667736,-981.39,0.00038904,6]
[327592038,1716246667746,-500.0,0.00038904,6]
[327592039,1716246667755,-500.0,0.00038904,6]
[327592040,1716246667765,-500.0,0.00038904,6]
[327592041,1716246667776,-524.18,0.00038904,6]
[327592042,1716246667786,-500.0,0.00038904,6]
[327592043,1716246667796,-500.0,0.00038904,6]
[327592044,1716246667805,-500.0,0.00038904,6]
[327592045,1716246667815,-500.0,0.00038904,6]
[327592046,1716246667824,-500.0,0.00038904,6]
[327592047,1716246667834,-500.0,0.00038904,6]
[327592048,1716246667843,-500.0,0.00038904,6]
[327592049,1716246667853,-500.0,0.00038904,6]
[327592050,1716246667863,-500.0,0.00038904,6]
[327592051,1716246667873,-605.12,0.00038904,6]
[327592052,1716246667883,-500.0,0.00038904,6]
[327592053,1716246667893,-500.0,0.00038904,6]
[327592054,1716246667903,-500.0,0.00038904,6]
[327592055,1716246667913,-500.0,0.00038904,6]
[327592056,1716246667923,-993.47,0.00038904,6]
[327592057,1716246667933,-500.0,0.00038904,6]
[327592058,1716246667943,-500.0,0.00038904,6]
[327592059,1716246667953,-500.0,0.00038904,6]
[327592060,1716246667963,-500.0,0.00038904,6]
[327592061,1716246667973,-500.0,0.00038904,6]
[327592062,1716246667983,-500.0,0.00038904,6]
[327592063,1716246667992,-500.0,0.00038904,6]
[327592064,1716246668002,-644.94,0.00038904,6]
[327592065,1716246668012,-500.0,0.00038904,6]
[327592066,1716246668024,-500.0,0.00038904,6]
[327592067,1716246668033,-500.0,0.00038904,6]
[327592068,1716246668042,-500.0,0.00038904,6]
[327592069,1716246668052,-251.55228427,0.00038904,6]
[327592070,1716246668062,-500.0,0.00038904,6]
[327592071,1716246668071,-500.0,0.00038904,6]
[327592072,1716246668082,-500.0,0.00038904,6]
[327592073,1716246668092,-500.0,0.00038904,6]
[327592074,1716246668101,-500.0,0.00038904,6]
[327592075,1716246668111,-500.0,0.00038904,6]
[327592076,1716246668121,-500.0,0.00038904,6]
[327592077,1716246668131,-541.50827213,0.00038904,6]
[327592078,1716246668141,-500.0,0.00038904,6]
[327592079,1716246668151,-706.15,0.00038904,6]
[327592080,1716246668160,-963.13,0.00038904,6]
[327592081,1716246668171,-675.0,0.00038904,6]
[327592082,1716246668180,-500.0,0.00038904,6]
[327592083,1716246668190,-617.75,0.00038904,6]
[327592084,1716246668200,-1361.19,0.00038904,6]
[327592085,1716246668210,-500.0,0.00038904,6]
[327592086,1716246668220,-500.0,0.00038904,6]
[327592087,1716246668230,-500.0,0.00038904,6]
[327592088,1716246668239,-582.73,0.00038904,6]
[327592089,1716246668249,-500.0,0.00038904,6]
[327592090,1716246668259,-500.0,0.00038904,6]
[327592091,1716246668271,-500.0,0.00038904,6]
[327592092,1716246668283,-500.0,0.00038904,6]
[327592093,1716246668292,-500.0,0.00038904,6]
[327592094,1716246668302,-500.0,0.00038904,6]
[327592095,1716246668312,-500.0,0.00038904,6]
[327592096,1716246668323,-500.0,0.00038904,6]
[327592097,1716246668332,-500.0,0.00038904,6]
[327592098,1716246668342,-500.0,0.00038904,6]
[327592099,1716246668352,-500.0,0.00038904,6]
[327592100,1716246668365,-500.0,0.00038904,6]
[327592101,1716246668376,-500.0,0.00038904,6]
[327592102,1716246668386,-500.0,0.00038904,6]
[327592103,1716246668396,-500.0,0.00038904,6]
[327592104,1716246668406,-500.0,0.00038904,6]
[327592105,1716246668416,-500.0,0.00038904,6]
[327592106,1716246668426,-500.0,0.00038904,6]
[327592107,1716246668435,-652.99,0.00038904,6]
[327592108,1716246668445,-500.0,0.00038904,6]
[327592109,1716246668456,-500.0,0.00038904,6]
[327592110,1716246668466,-500.0,0.00038904,6]
[327592111,1716246668475,-596.88,0.00038904,6]
[327592112,1716246668485,-661.32,0.00038904,6]
[327592113,1716246668495,-1144.55,0.00038904,6]
[327592114,1716246668505,-500.0,0.00038904,6]
[327592115,1716246668517,-951.14,0.00038904,6]
[327592116,1716246668529,-500.0,0.00038904,6]
[327592117,1716246668539,-500.0,0.00038904,6]
[327592118,1716246668549,-500.0,0.00038904,6]
[327592119,1716246668561,-444.1,0.00038904,6]
[327592120,1716246668572,-500.0,0.00038904,6]
[327592121,1716246668583,-1432.71,0.00038904,6]
[327592122,1716246668593,-500.0,0.00038904,6]
[327592123,1716246668602,-500.0,0.00038904,6]
[327592124,1716246668611,-500.0,0.00038904,6]
[327592125,1716246668621,-500.0,0.00038904,6]
[327592126,1716246668631,-497.46381722,0.00038904,6]
[327592127,1716246668642,-933.1,0.00038904,6]
[327592128,1716246668652,-503.38349012,0.00038904,6]
[327592129,1716246668663,-500.0,0.00038904,6]
[327592130,1716246668673,-500.0,0.00038904,6]
[327592131,1716246668683,-1010.0,0.00038904,6]
[327592132,1716246668692,-500.0,0.00038904,6]
[327592133,1716246668702,-578.46,0.00038904,6]
[327592134,1716246668713,-620.21,0.00038904,6]
[327592135,1716246668724,-500.0,0.00038904,6]
[327592136,1716246668735,-500.0,0.00038904,2]
[327592137,1716246668745,-500.0,0.00038904,6]
[327592138,1716246668755,-650.53,0.00038904,6]
[327592139,1716246668764,-500.0,0.00038904,6]
[327592140,1716246668776,-693.87,0.00038904,6]
[327592141,1716246668786,-500.0,0.00038904,6]
[327592142,1716246668796,-500.0,0.00038904,6]
[327592143,1716246668806,-542.68,0.00038904,6]
[327592144,1716246668816,-637.78,0.00038904,6]
[327592145,1716246668826,-544.83,0.00038904,6]
[327592146,1716246668836,-991.09,0.00038904,6]
[327592147,1716246668847,-500.0,0.00038904,6]
[327592148,1716246668856,-500.0,0.00038904,6]
[327592149,1716246668866,-1494.37,0.00038904,6]
[327592150,1716246668876,-500.0,0.00038904,6]
[327592151,1716246668885,-500.0,0.00038904,6]
[327592152,1716246668895,-510.47502839,0.00038904,6]
[327592153,1716246668905,-500.0,0.00038904,6]
[327592154,1716246668915,-882.87,0.00038904,6]
[327592155,1716246668924,-500.0,0.00038904,6]
[327592156,1716246668934,-1368.93,0.00038904,6]
[327592157,1716246668944,-500.0,0.00038904,6]
[327592158,1716246668954,-2000.0,0.00038904,30]
[327592159,1716246668964,-500.0,0.00038904,6]
[327592160,1716246668974,-500.0,0.00038904,6]
[327592161,1716246668986,-500.0,0.00038904,6]
[327592162,1716246668996,-500.0,0.00038904,6]
[327592163,1716246669007,-657.4,0.00038904,6]
[327592164,1716246669017,-500.0,0.00038904,6]
[327592165,1716246669028,-500.0,0.00038904,6]
[327592166,1716246669038,-500.0,0.00038904,6]
[327592167,1716246669048,-500.0,0.00038904,6]
[327592168,1716246669058,-1079.66,0.00038904,6]
[327592169,1716246669068,-818.11,0.00038904,6]
[327592170,1716246669078,-500.0,0.00038904,6]
[327592171,1716246669088,-519.94,0.00038904,6]
[327592172,1716246669099,-529.42,0.00038904,6]
[327592173,1716246669109,-500.0,0.00038904,6]
[327592174,1716246669119,-500.0,0.00038904,6]
[327592175,1716246669129,-500.0,0.00038904,6]
[327592176,1716246669140,-1104.38,0.00038904,6]
[327592177,1716246669150,-500.0,0.00038904,6]